[Event "44th Chess Olympiad Open 2022"]
[Site "Chennai"]
[Date "2022.08.09"]
[Round "11.82"]
[White "Herrera, Adrian"]
[Black "Asante Debesai Zerabruk"]
[Result "0-1"]
[ECO "C41"]
[WhiteElo "1563"]
[BlackElo "1785"]
[Annotator "NA RC COMBH"]
[PlyCount "65"]
[EventDate "2022.07.29"]
[EventType "team-tourn"]
[EventCountry "IND"]
[SourceTitle "playchess.com"]
[Source "ChessBase"]
[SourceQuality "1"]
[WhiteTeam "San Marino"]
[BlackTeam "Eritrea"]
[WhiteTeamCountry "SMR"]
[BlackTeamCountry "ERI"]
[TimeControl "40/5400+30:1800+30"]

1. e4 {[%emt 0:00:13]} d6 {[%emt 0:00:51]} 2. d4 {[%emt 0:00:31]} Nf6 {[%emt 0:00:05]} 3. Nc3 {[%emt 0:00:09]} Nbd7 {[%emt 0:02:19]} 4. Nf3 {[%emt 0:00:34]} e5 {[%emt 0:00:06]} 5. dxe5 {[%emt 0:01:41]} dxe5 {[%emt 0:00:02]} 6. Bc4 {[%emt 0:00:14]} Be7 {[%emt 0:01:12]} 7. h3 {[%emt 0:01:50]} c6 {[%emt 0:00:27]} 8. a4 {[%emt 0:01:40]} a5 {[%emt 0:00:54]} 9. O-O {[%emt 0:01:47]} h6 {[%emt 0:00:16]} 10. Be3 {[%emt 0:01:22]} Qc7 {[%emt 0:00:37]} 11. Qe2 {[%emt 0:02:21]} g5 {[%emt 0:08:44]} 12. Bxg5 {[%emt 0:24:51]} hxg5 {[%emt 0:02:54]} 13. Nxg5 {[%emt 0:01:08]} Rf8 {[%emt 0:05:02]} 14. Qf3 {[%emt 0:11:13]} Nc5 {[%emt 0:06:22]} 15. Rad1 {[%emt 0:10:06]} Be6 {[%emt 0:10:15]} 16. Bxe6 {[%emt 0:06:41]} Nxe6 {[%emt 0:02:45]} 17. Nxe6 {[%emt 0:00:17]} fxe6 {[%emt 0:00:01]} 18. Rd3 {[%emt 0:03:20]} Bd6 {[%emt 0:01:48]} 19. Rfd1 {[%emt 0:01:04]} O-O-O {[%emt 0:00:38]} 20. Qe3 {[%emt 0:06:13]} Kb8 {[%emt 0:08:53]} 21. Ne2 {[%emt 0:02:28]} Be7 {[%emt 0:01:16]} 22. g4 {[%emt 0:00:36]} Rxd3 {[%emt 0:01:01]} 23. Rxd3 {[%emt 0:00:43]} Rg8 {[%emt 0:02:30]} 24. Qf3 {[%emt 0:02:32]} Bd8 {[%emt 0:00:42]} 25. Ng3 {[%emt 0:00:43]} Qg7 {[%emt 0:01:17]} 26. Rd6 {[%emt 0:01:50]} Qe7 {[%emt 0:05:08]} 27. Qd1 {[%emt 0:02:24]} Bb6 {[%emt 0:01:30]} 28. c3 {[%emt 0:04:33]} Nd5 {[%emt 0:01:30]} 29. Rxd5 {[%emt 0:01:10]} cxd5 {[%emt 0:01:35]} 30. exd5 {[%emt 0:00:22]} Qc5 {[%emt 0:01:14]} 31. Qe1 {[%emt 0:01:19]} Qxd5 {[%emt 0:05:19]} 32. Ne4 {[%emt 0:01:45]} Rf8 {[%emt 0:00:35]} 33. Kg2 {[%emt 0:00:47]} 0-1

[Event "44th Chess Olympiad Open 2022"]
[Site "Chennai"]
[Date "2022.08.09"]
[Round "11.83"]
[White "Mohamed Ali Dima"]
[Black "Faulks, Nick"]
[Result "0-1"]
[ECO "B40"]
[WhiteElo "1582"]
[BlackElo "1820"]
[Annotator "NA RC COMBH"]
[PlyCount "100"]
[EventDate "2022.07.29"]
[EventType "team-tourn"]
[EventCountry "IND"]
[SourceTitle "playchess.com"]
[Source "ChessBase"]
[SourceQuality "1"]
[WhiteTeam "Djibouti"]
[BlackTeam "Bermuda"]
[WhiteTeamCountry "DJI"]
[BlackTeamCountry "BER"]
[TimeControl "40/5400+30:1800+30"]

1. e4 {[%emt 0:01:50]} c5 {[%emt 0:00:04]} 2. Nf3 {[%emt 0:00:42]} e6 {[%emt 0:00:04]} 3. c3 {[%emt 0:00:21]} d5 {[%emt 0:00:16]} 4. exd5 {[%emt 0:01:37]} Qxd5 {[%emt 0:00:14]} 5. Bb5+ {[%emt 0:00:49]} Bd7 {[%emt 0:01:28]} 6. Bxd7+ {[%emt 0:00:13]} Qxd7 {[%emt 0:00:19]} 7. O-O {[%emt 0:00:03]} Nc6 {[%emt 0:01:07]} 8. d4 {[%emt 0:03:12]} cxd4 {[%emt 0:00:00]} 9. cxd4 {[%emt 0:00:59]} Nf6 {[%emt 0:00:28]} 10. Nc3 {[%emt 0:00:07]} Be7 {[%emt 0:01:32]} 11. Ne5 {[%emt 0:00:30]} Qxd4 {[%emt 0:02:57]} 12. Nxc6 {[%emt 0:00:34]} Qxd1 {[%emt 0:00:23]} 13. Rxd1 {[%emt 0:00:02]} bxc6 {[%emt 0:00:09]} 14. Bf4 {[%emt 0:00:40]} Nd5 {[%emt 0:01:34]} 15. Be5 {[%emt 0:02:12]} O-O {[%emt 0:01:02]} 16. Rac1 {[%emt 0:01:00]} Bg5 {[%emt 0:10:16]} 17. Nxd5 {[%emt 0:02:53]} cxd5 {[%emt 0:00:25]} 18. f4 {[%emt 0:00:26]} Bd8 {[%emt 0:00:37]} 19. Rc6 {[%emt 0:00:46]} Bb6+ {[%emt 0:01:51]} 20. Kf1 {[%emt 0:03:50]} Rfc8 {[%emt 0:10:23]} 21. Rdc1 {[%emt 0:01:15]} Rxc6 {[%emt 0:00:23]} 22. Rxc6 {[%emt 0:00:43]} f6 {[%emt 0:00:33]} 23. Bc3 {[%emt 0:01:53]} Kf7 {[%emt 0:01:18]} 24. a4 {[%emt 0:00:11]} Re8 {[%emt 0:03:19]} 25. a5 {[%emt 0:01:17]} Be3 {[%emt 0:00:42]} 26. g3 {[%emt 0:03:06]} Kg6 {[%emt 0:04:54]} 27. Ke2 {[%emt 0:00:56]} d4 {[%emt 0:01:10]} 28. Be1 {[%emt 0:02:49]} e5 {[%emt 0:09:21]} 29. fxe5 {[%emt 0:03:36]} Rxe5 {[%emt 0:00:13]} 30. Kd3 {[%emt 0:02:44]} Bg1 {[%emt 0:03:21]} 31. Bd2 {[%emt 0:00:05]} Re7 {[%emt 0:13:21]} 32. b4 {[%emt 0:02:03]} Bxh2 {[%emt 0:03:01]} 33. Bf4 {[%emt 0:01:34]} h5 {[%emt 0:05:15]} 34. Rc7 {[%emt 0:01:21]} Re1 {[%emt 0:06:03]} 35. Rxa7 {[%emt 0:05:35]} h4 {[%emt 0:00:46]} 36. b5 {[%emt 0:00:31]} Bxg3 {[%emt 0:01:14]} 37. Bd2 {[%emt 0:05:27]} Rb1 {[%emt 0:00:47]} 38. Ra8 {[%emt 0:04:04]} Rxb5 {[%emt 0:03:29]} 39. a6 {[%emt 0:04:07]} Rb8 {[%emt 0:02:30]} 40. Rxb8 {[%emt 0:01:32]} Bxb8 {[%emt 0:00:10]} 41. Kxd4 {[%emt 0:31:07]} Kf5 {[%emt 0:32:42]} 42. Ke3 {[%emt 0:00:19]} g5 {[%emt 0:04:29]} 43. Kf3 {[%emt 0:03:04]} g4+ {[%emt 0:00:36]} 44. Kf2 {[%emt 0:04:42]} Ke4 {[%emt 0:01:21]} 45. Bb4 {[%emt 0:08:27]} Ba7+ {[%emt 0:03:39]} 46. Kg2 {[%emt 0:00:47]} f5 {[%emt 0:00:00]} 47. Be1 {[%emt 0:00:00]} g3 {[%emt 0:00:00]} 48. Kh3 {[%emt 0:00:00]} Kf3 {[%emt 0:00:00]} 49. Kxh4 {[%emt 0:00:00]} g2 {[%emt 0:00:00]} 50. Bf2 {[%emt 0:00:00]} Kxf2 {[%emt 0:00:00]} 0-1

[Event "44th Chess Olympiad Open 2022"]
[Site "Chennai"]
[Date "2022.08.09"]
[Round "11.83"]
[White "Ismael Mohamed Goumaneh"]
[Black "Gontcharov, Dimitri"]
[Result "1-0"]
[ECO "B43"]
[WhiteElo "1473"]
[BlackElo "1448"]
[Annotator "NA RC COMBH"]
[PlyCount "67"]
[EventDate "2022.07.29"]
[EventType "team-tourn"]
[EventCountry "IND"]
[SourceTitle "playchess.com"]
[Source "ChessBase"]
[SourceQuality "1"]
[WhiteTeam "Djibouti"]
[BlackTeam "Bermuda"]
[WhiteTeamCountry "DJI"]
[BlackTeamCountry "BER"]
[TimeControl "40/5400+30:1800+30"]

1. e4 {[%emt 0:11:57]} c5 {[%emt 0:00:27]} 2. Nf3 {[%emt 0:00:52]} e6 {[%emt 0:00:09]} 3. d4 {[%emt 0:00:14]} cxd4 {[%emt 0:00:06]} 4. Nxd4 {[%emt 0:00:02]} a6 {[%emt 0:00:10]} 5. a3 {[%emt 0:00:29]} Nf6 {[%emt 0:00:48]} 6. Nc3 {[%emt 0:00:01]} Qc7 {[%emt 0:00:11]} 7. Be3 {[%emt 0:00:08]} Be7 {[%emt 0:00:17]} 8. f3 {[%emt 0:00:09]} d6 {[%emt 0:00:31]} 9. Qd2 {[%emt 0:00:07]} Nbd7 {[%emt 0:00:20]} 10. O-O-O {[%emt 0:01:09]} O-O {[%emt 0:00:57]} 11. g4 {[%emt 0:00:17]} Ne5 {[%emt 0:05:35]} 12. g5 {[%emt 0:02:05]} Nfd7 {[%emt 0:01:34]} 13. f4 {[%emt 0:01:55]} Ng6 {[%emt 0:12:58]} 14. f5 {[%emt 0:03:33]} exf5 {[%emt 0:02:13]} 15. Nxf5 {[%emt 0:00:12]} Nde5 {[%emt 0:03:05]} 16. Nd5 {[%emt 0:00:41]} Qd8 {[%emt 0:02:59]} 17. h4 {[%emt 0:01:04]} Nc6 {[%emt 0:07:26]} 18. Bb6 {[%emt 0:03:44]} Qe8 {[%emt 0:08:09]} 19. Nc7 {[%emt 0:00:55]} Qd7 {[%emt 0:01:43]} 20. Bh3 {[%emt 0:01:25]} Qd8 {[%emt 0:02:11]} 21. Nxa8 {[%emt 0:00:10]} Qe8 {[%emt 0:00:11]} 22. Nc7 {[%emt 0:00:14]} Qd8 {[%emt 0:00:10]} 23. Nd5 {[%emt 0:00:25]} Qe8 {[%emt 0:00:11]} 24. h5 {[%emt 0:01:37]} Nge5 {[%emt 0:00:25]} 25. Ndxe7+ {[%emt 0:00:45]} Nxe7 {[%emt 0:00:26]} 26. Nxd6 {[%emt 0:03:13]} Qc6 {[%emt 0:00:27]} 27. Qb4 {[%emt 0:02:45]} Bxh3 {[%emt 0:08:09]} 28. Rxh3 {[%emt 0:00:10]} Nc8 {[%emt 0:03:04]} 29. Nxc8 {[%emt 0:01:22]} Qxc8 {[%emt 0:00:32]} 30. Qc3 {[%emt 0:02:03]} Qe6 {[%emt 0:02:03]} 31. Bd4 {[%emt 0:02:30]} Nc6 {[%emt 0:02:43]} 32. Bxg7 {[%emt 0:00:51]} Rc8 {[%emt 0:00:19]} 33. Kb1 {[%emt 0:05:36]} Qxe4 {[%emt 0:04:25]} 34. Bh6 {[%emt 0:01:47]} 1-0

[Event "44th Chess Olympiad Open 2022"]
[Site "Chennai"]
[Date "2022.08.10"]
[Round "11.85"]
[White "Muheto, Dieudonne"]
[Black "Depaune, Ricko"]
[Result "1-0"]
[ECO "A10"]
[WhiteElo "1830"]
[BlackElo "1726"]
[Annotator "NA"]
[PlyCount "115"]
[EventDate "2022.07.29"]
[EventType "team-tourn"]
[EventCountry "IND"]
[SourceTitle "playchess.com"]
[Source "ChessBase"]
[SourceQuality "1"]
[WhiteTeam "BDI"]
[BlackTeam "NRU"]
[TimeControl "40/5400+30:1800+30"]

1. c4 {[%emt 0:00:59]} d5 {[%emt 0:00:25]} 2. cxd5 {[%emt 0:00:11]} Qxd5 {[%emt 0:00:05]} 3. Nc3 {[%emt 0:00:09]} Qd8 {[%emt 0:00:03]} 4. Nf3 {[%emt 0:00:38]} g6 {[%emt 0:00:13]} 5. g3 {[%emt 0:00:07]} Bg7 {[%emt 0:00:30]} 6. d4 {[%emt 0:00:51]} e6 {[%emt 0:00:21]} 7. Bg2 {[%emt 0:00:15]} Nf6 {[%emt 0:00:54]} 8. O-O {[%emt 0:00:45]} O-O {[%emt 0:00:16]} 9. Bf4 {[%emt 0:01:34]} Nd5 {[%emt 0:00:18]} 10. Bg5 {[%emt 0:01:43]} f6 {[%emt 0:00:24]} 11. Bd2 {[%emt 0:00:08]} c6 {[%emt 0:00:46]} 12. e4 {[%emt 0:00:12]} Nb6 {[%emt 0:00:08]} 13. b3 {[%emt 0:01:55]} Na6 {[%emt 0:00:07]} 14. h4 {[%emt 0:00:15]} Bd7 {[%emt 0:02:02]} 15. h5 {[%emt 0:05:52]} Be8 {[%emt 0:00:52]} 16. Bh3 {[%emt 0:01:09]} Qe7 {[%emt 0:03:52]} 17. h6 {[%emt 0:01:07]} Bh8 {[%emt 0:00:03]} 18. e5 {[%emt 0:01:00]} fxe5 {[%emt 0:00:34]} 19. dxe5 {[%emt 0:00:58]} Bf7 {[%emt 0:05:37]} 20. Ne4 {[%emt 0:01:22]} Rfd8 {[%emt 0:04:47]} 21. Qe1 {[%emt 0:00:50]} Rd5 {[%emt 0:07:22]} 22. Bg5 {[%emt 0:02:21]} Qc7 {[%emt 0:02:45]} 23. Bf6 {[%emt 0:00:11]} Rxe5 {[%emt 0:01:21]} 24. Bxe5 {[%emt 0:00:44]} Bxe5 {[%emt 0:00:10]} 25. Neg5 {[%emt 0:00:55]} Nd7 {[%emt 0:10:58]} 26. Nxf7 {[%emt 0:02:03]} Kxf7 {[%emt 0:02:24]} 27. Ng5+ {[%emt 0:00:20]} Ke7 {[%emt 0:02:26]} 28. Nxe6 {[%emt 0:01:32]} Qb6 {[%emt 0:01:15]} 29. Ng5 {[%emt 0:00:28]} Re8 {[%emt 0:01:03]} 30. Rd1 {[%emt 0:00:27]} Nab8 {[%emt 0:00:15]} 31. Qe2 {[%emt 0:02:23]} Kd8 {[%emt 0:00:55]} 32. Bxd7 {[%emt 0:04:26]} Nxd7 {[%emt 0:02:20]} 33. Nf7+ {[%emt 0:00:23]} Kc7 {[%emt 0:03:05]} 34. Rxd7+ {[%emt 0:00:25]} Kxd7 {[%emt 0:01:42]} 35. Nxe5+ {[%emt 0:00:44]} Kc7 {[%emt 0:00:11]} 36. Rd1 {[%emt 0:01:57]} Qc5 {[%emt 0:02:01]} 37. Re1 {[%emt 0:03:46]} Re6 {[%emt 0:07:17]} 38. Qe4 {[%emt 0:02:51]} Qf8 {[%emt 0:07:13]} 39. Qg4 {[%emt 0:03:38]} Qe7 {[%emt 0:02:32]} 40. Qf4 {[%emt 0:00:54]} g5 {[%emt 0:00:42]} 41. Qe4 {[%emt 0:32:55]} Rxh6 {[%emt 0:34:55]} 42. Ng4 {[%emt 0:01:51]} Qxe4 {[%emt 0:01:44]} 43. Rxe4 {[%emt 0:00:10]} Rd6 {[%emt 0:00:28]} 44. Re7+ {[%emt 0:00:28]} Kb6 {[%emt 0:00:03]} 45. Ne5 {[%emt 0:00:34]} Rd5 {[%emt 0:00:55]} 46. Nc4+ {[%emt 0:00:30]} Ka6 {[%emt 0:00:03]} 47. Re5 {[%emt 0:04:48]} Kb5 {[%emt 0:01:44]} 48. f4 {[%emt 0:01:00]} gxf4 {[%emt 0:01:03]} 49. gxf4 {[%emt 0:00:12]} Kc5 {[%emt 0:00:45]} 50. Kf2 {[%emt 0:02:45]} b5 {[%emt 0:00:32]} 51. Ne3 {[%emt 0:00:48]} Rxe5 {[%emt 0:04:16]} 52. fxe5 {[%emt 0:02:05]} a5 {[%emt 0:00:19]} 53. Kf3 {[%emt 0:00:22]} Kb6 {[%emt 0:00:03]} 54. Ke4 {[%emt 0:01:11]} Kc7 {[%emt 0:00:06]} 55. a4 {[%emt 0:02:06]} h5 {[%emt 0:01:33]} 56. Kf5 {[%emt 0:00:47]} h4 {[%emt 0:03:18]} 57. Kf6 {[%emt 0:00:12]} h3 {[%emt 0:00:20]} 58. Ng4 {[%emt 0:00:07]} 1-0

[Event "44th Chess Olympiad Open 2022"]
[Site "Chennai"]
[Date "2022.08.10"]
[Round "11.86"]
[White "Enemchukwu Chinedu Benjamin"]
[Black "Koumba, Mounguen Jose Evrard"]
[Result "1/2-1/2"]
[ECO "B21"]
[WhiteElo "1889"]
[BlackElo "1942"]
[Annotator "ChessBase"]
[PlyCount "112"]
[EventDate "2022.07.29"]
[EventType "team-tourn"]
[EventCountry "IND"]
[SourceTitle "playchess.com"]
[Source "ChessBase"]
[SourceQuality "1"]
[WhiteTeam "VIN"]
[BlackTeam "Gabun"]
[BlackTeamCountry "GAB"]
[TimeControl "40/5400+30:1800+30"]

1. e4 {[%emt 0:00:03]} c5 {[%emt 0:00:26]} 2. d4 {[%emt 0:00:06]} cxd4 {[%emt 0:00:01]} 3. c3 {[%emt 0:00:07]} dxc3 {[%emt 0:00:05]} 4. Nxc3 {[%emt 0:00:21]} Nc6 {[%emt 0:00:05]} 5. Nf3 {[%emt 0:00:05]} e6 {[%emt 0:00:06]} 6. Bf4 {[%emt 0:00:08]} Bb4 {[%emt 0:00:29]} 7. Bd3 {[%emt 0:00:21]} a6 {[%emt 0:00:51]} 8. O-O {[%emt 0:00:07]} Nge7 {[%emt 0:00:14]} 9. a3 {[%emt 0:01:19]} Ng6 {[%emt 0:02:15]} 10. Bg3 {[%emt 0:00:14]} Be7 {[%emt 0:00:16]} 11. Qe2 {[%emt 0:00:20]} O-O {[%emt 0:00:31]} 12. Rfd1 {[%emt 0:00:07]} f6 {[%emt 0:05:40]} 13. Rac1 {[%emt 0:00:56]} Nce5 {[%emt 0:03:27]} 14. Nxe5 {[%emt 0:00:43]} Nxe5 {[%emt 0:00:06]} 15. Bb1 {[%emt 0:00:09]} b5 {[%emt 0:03:28]} 16. Ba2 {[%emt 0:00:33]} Qb6 {[%emt 0:00:50]} 17. Kh1 {[%emt 0:00:51]} Kh8 {[%emt 0:01:08]} 18. f4 {[%emt 0:01:29]} Nc6 {[%emt 0:02:31]} 19. Nd5 {[%emt 0:01:19]} Qd8 {[%emt 0:12:58]} 20. Nxe7 {[%emt 0:04:31]} Qxe7 {[%emt 0:00:04]} 21. Bf2 {[%emt 0:00:17]} Rg8 {[%emt 0:00:21]} 22. Bc5 {[%emt 0:00:57]} Qf7 {[%emt 0:00:23]} 23. b4 {[%emt 0:01:54]} Bb7 {[%emt 0:00:56]} 24. Rc3 {[%emt 0:01:14]} Rae8 {[%emt 0:04:27]} 25. Rcd3 {[%emt 0:03:06]} Nb8 {[%emt 0:04:43]} 26. Ba7 {[%emt 0:02:36]} Bc6 {[%emt 0:00:11]} 27. Rd6 {[%emt 0:00:41]} f5 {[%emt 0:02:05]} 28. exf5 {[%emt 0:00:44]} Qxf5 {[%emt 0:00:28]} 29. Qd2 {[%emt 0:04:21]} Rgf8 {[%emt 0:00:27]} 30. Rf1 {[%emt 0:04:17]} e5 {[%emt 0:02:45]} 31. Bb1 {[%emt 0:02:14]} Qg4 {[%emt 0:00:24]} 32. f5 {[%emt 0:01:22]} Rf6 {[%emt 0:27:30]} 33. Rxf6 {[%emt 0:00:48]} gxf6 {[%emt 0:00:10]} 34. Kg1 {[%emt 0:01:21]} Rg8 {[%emt 0:01:38]} 35. g3 {[%emt 0:02:44]} d5 {[%emt 0:00:14]} 36. Rc1 {[%emt 0:00:40]} Ba8 {[%emt 0:04:46]} 37. Rc7 {[%emt 0:02:56]} Qh3 {[%emt 0:07:28]} 38. Bxb8 {[%emt 0:00:42]} Rxb8 {[%emt 0:00:10]} 39. Qc2 {[%emt 0:00:24]} Rg8 {[%emt 0:01:36]} 40. Rc8 {[%emt 0:00:19]} Qg4 {[%emt 0:00:08]} 41. Rxg8+ {[%emt 0:32:49]} Qxg8 {[%emt 0:30:17]} 42. Qc7 {[%emt 0:00:27]} Qe8 {[%emt 0:11:23]} 43. Qd6 {[%emt 0:01:25]} Kg7 {[%emt 0:00:42]} 44. Qc7+ {[%emt 0:00:58]} Qf7 {[%emt 0:00:17]} 45. Qd6 {[%emt 0:08:50]} Qb7 {[%emt 0:01:09]} 46. Bd3 {[%emt 0:01:22]} d4 {[%emt 0:00:00]} 47. Kf2 {[%emt 0:00:00]} e4 {[%emt 0:00:00]} 48. Be2 {[%emt 0:00:00]} e3+ {[%emt 0:00:00]} 49. Ke1 {[%emt 0:00:00]} Qh1+ {[%emt 0:00:00]} 50. Bf1 {[%emt 0:00:00]} Bd5 {[%emt 0:00:00]} 51. Qd7+ {[%emt 0:00:00]} Bf7 {[%emt 0:00:00]} 52. Qxd4 {[%emt 0:00:00]} Qf3 {[%emt 0:00:00]} 53. Qf4 {[%emt 0:00:00]} Qd5 {[%emt 0:00:00]} 54. Qxe3 {[%emt 0:00:00]} Qxf5 {[%emt 0:00:00]} 55. Bd3 {[%emt 0:00:00]} Qh3 {[%emt 0:00:00]} 56. Qe2 {[%emt 0:00:00]} Qc8 {[%emt 0:00:00]} 1/2-1/2

[Event "44th Chess Olympiad Open 2022"]
[Site "Chennai"]
[Date "2022.08.10"]
[Round "11.86"]
[White "Bongo Akanga Ndjila, Barthelemy"]
[Black "Escalante Ramirez, Brian Sebasti"]
[Result "1-0"]
[ECO "D45"]
[WhiteElo "1803"]
[BlackElo "2496"]
[Annotator "ChessBase"]
[PlyCount "85"]
[EventDate "2022.07.29"]
[EventType "team-tourn"]
[EventCountry "IND"]
[SourceTitle "playchess.com"]
[Source "ChessBase"]
[SourceQuality "1"]
[WhiteTeam "Gabun"]
[BlackTeam "Peru"]
[WhiteTeamCountry "GAB"]
[BlackTeamCountry "PER"]
[TimeControl "40/5400+30:1800+30"]

1. d4 {[%emt 0:03:30]} d5 {[%emt 0:00:09]} 2. c4 {[%emt 0:00:06]} e6 {[%emt 0:00:19]} 3. Nc3 {[%emt 0:00:07]} Nf6 {[%emt 0:00:10]} 4. Nf3 {[%emt 0:00:08]} c6 {[%emt 0:00:27]} 5. e3 {[%emt 0:00:33]} Nbd7 {[%emt 0:00:25]} 6. Qc2 {[%emt 0:00:07]} Be7 {[%emt 0:01:29]} 7. b3 {[%emt 0:00:28]} O-O {[%emt 0:00:30]} 8. Bd3 {[%emt 0:00:06]} Re8 {[%emt 0:00:26]} 9. e4 {[%emt 0:00:13]} dxe4 {[%emt 0:15:19]} 10. Nxe4 {[%emt 0:00:33]} Nxe4 {[%emt 0:01:04]} 11. Bxe4 {[%emt 0:00:07]} Nf6 {[%emt 0:00:22]} 12. Bd3 {[%emt 0:00:01]} c5 {[%emt 0:01:35]} 13. dxc5 {[%emt 0:00:18]} Qa5+ {[%emt 0:04:39]} 14. Bd2 {[%emt 0:00:17]} Qxc5 {[%emt 0:00:08]} 15. O-O {[%emt 0:00:07]} b6 {[%emt 0:00:47]} 16. Be3 {[%emt 0:01:19]} Qc7 {[%emt 0:00:37]} 17. Bg5 {[%emt 0:05:55]} h6 {[%emt 0:00:25]} 18. Bh4 {[%emt 0:00:07]} Bb7 {[%emt 0:00:27]} 19. Bg3 {[%emt 0:11:42]} Bd6 {[%emt 0:01:41]} 20. Bxd6 {[%emt 0:02:22]} Qxd6 {[%emt 0:00:02]} 21. Rfd1 {[%emt 0:00:22]} Qc7 {[%emt 0:01:00]} 22. Qe2 {[%emt 0:04:59]} e5 {[%emt 0:04:51]} 23. Bc2 {[%emt 0:12:11]} e4 {[%emt 0:04:55]} 24. Nd4 {[%emt 0:02:27]} Qe5 {[%emt 0:01:42]} 25. Nb5 {[%emt 0:00:27]} Re6 {[%emt 0:05:55]} 26. Nd4 {[%emt 0:03:10]} Re7 {[%emt 0:01:51]} 27. Rd2 {[%emt 0:01:42]} Rd8 {[%emt 0:06:56]} 28. Rad1 {[%emt 0:02:28]} Red7 {[%emt 0:17:31]} 29. Nb5 {[%emt 0:25:57]} a6 {[%emt 0:00:00]} 30. Rxd7 {[%emt 0:00:14]} Rxd7 {[%emt 0:00:00]} 31. Rxd7 {[%emt 0:00:12]} Nxd7 {[%emt 0:00:00]} 32. Qd2 {[%emt 0:03:24]} axb5 {[%emt 0:08:01]} 33. Qxd7 {[%emt 0:00:11]} bxc4 {[%emt 0:01:38]} 34. bxc4 {[%emt 0:06:25]} Qc3 {[%emt 0:03:03]} 35. Qe8+ {[%emt 0:01:14]} Kh7 {[%emt 0:00:21]} 36. Bxe4+ {[%emt 0:00:09]} g6 {[%emt 0:00:34]} 37. Qxf7+ {[%emt 0:00:40]} Kh8 {[%emt 0:00:16]} 38. Qe8+ {[%emt 0:00:47]} Kg7 {[%emt 0:00:42]} 39. Qxg6+ {[%emt 0:03:26]} Kf8 {[%emt 0:00:02]} 40. Qxh6+ {[%emt 0:01:43]} Ke7 {[%emt 0:01:12]} 41. Qg5+ {[%emt 0:32:42]} Kf8 {[%emt 0:30:25]} 42. Qd8+ {[%emt 0:00:55]} Kg7 {[%emt 0:00:25]} 43. Qc7+ {[%emt 0:01:06]} 1-0

[Event "44th Chess Olympiad Open 2022"]
[Site "Chennai"]
[Date "2022.08.10"]
[Round "11.87"]
[White "Morgan, Jamie"]
[Black "Thomas, Larry"]
[Result "0-1"]
[ECO "B12"]
[WhiteElo "1753"]
[BlackElo "1317"]
[Annotator "NA"]
[PlyCount "146"]
[EventDate "2022.07.29"]
[EventType "team-tourn"]
[EventCountry "IND"]
[SourceTitle "playchess.com"]
[Source "ChessBase"]
[SourceQuality "1"]
[WhiteTeam "Channel Islands"]
[BlackTeam "DMA"]
[WhiteTeamCountry "GCI"]
[TimeControl "40/5400+30:1800+30"]

1. e4 {[%emt 0:00:06]} c6 {[%emt 0:00:06]} 2. d4 {[%emt 0:00:21]} d5 {[%emt 0:00:02]} 3. e5 {[%emt 0:00:50]} Bf5 {[%emt 0:01:14]} 4. Nf3 {[%emt 0:00:53]} h6 {[%emt 0:00:16]} 5. Bd3 {[%emt 0:01:05]} Bxd3 {[%emt 0:00:15]} 6. Qxd3 {[%emt 0:00:06]} e6 {[%emt 0:00:14]} 7. O-O {[%emt 0:00:42]} Ne7 {[%emt 0:00:53]} 8. c3 {[%emt 0:03:21]} a5 {[%emt 0:00:38]} 9. a4 {[%emt 0:05:49]} Nd7 {[%emt 0:00:36]} 10. b3 {[%emt 0:01:13]} Qb6 {[%emt 0:01:37]} 11. Ba3 {[%emt 0:03:17]} Ng6 {[%emt 0:05:42]} 12. Bxf8 {[%emt 0:03:05]} Ndxf8 {[%emt 0:00:05]} 13. Nbd2 {[%emt 0:02:04]} Nd7 {[%emt 0:00:12]} 14. b4 {[%emt 0:12:52]} axb4 {[%emt 0:00:58]} 15. cxb4 {[%emt 0:00:24]} O-O {[%emt 0:03:36]} 16. Rfb1 {[%emt 0:05:58]} Qd8 {[%emt 0:02:54]} 17. a5 {[%emt 0:05:05]} Ne7 {[%emt 0:04:55]} 18. Nb3 {[%emt 0:03:19]} Nb8 {[%emt 0:10:54]} 19. Nc5 {[%emt 0:03:25]} Qc7 {[%emt 0:00:50]} 20. Na4 {[%emt 0:04:24]} Nc8 {[%emt 0:00:42]} 21. Nd2 {[%emt 0:09:15]} Rd8 {[%emt 0:12:24]} 22. Nb3 {[%emt 0:01:48]} Nd7 {[%emt 0:06:23]} 23. Rc1 {[%emt 0:02:50]} b5 {[%emt 0:06:41]} 24. Nac5 {[%emt 0:02:05]} Na7 {[%emt 0:06:04]} 25. h3 {[%emt 0:02:01]} Nb8 {[%emt 0:07:48]} 26. f4 {[%emt 0:03:44]} Qe7 {[%emt 0:01:03]} 27. f5 {[%emt 0:01:15]} exf5 {[%emt 0:03:18]} 28. Qxf5 {[%emt 0:00:20]} Nd7 {[%emt 0:03:21]} 29. Rf1 {[%emt 0:04:28]} Nxc5 {[%emt 0:01:37]} 30. Nxc5 {[%emt 0:00:25]} Rac8 {[%emt 0:02:09]} 31. Rae1 {[%emt 0:01:07]} Rf8 {[%emt 0:05:54]} 32. Nd7 {[%emt 0:02:37]} g6 {[%emt 0:04:15]} 33. Nf6+ {[%emt 0:02:48]} Kg7 {[%emt 0:00:23]} 34. Qb1 {[%emt 0:00:28]} h5 {[%emt 0:01:50]} 35. Re3 {[%emt 0:01:00]} Rh8 {[%emt 0:01:02]} 36. Qe1 {[%emt 0:00:14]} Qe6 {[%emt 0:00:16]} 37. Qc3 {[%emt 0:05:57]} Qe7 {[%emt 0:01:34]} 38. Qe1 {[%emt 0:00:35]} Qe6 {[%emt 0:00:26]} 39. Qh4 {[%emt 0:01:19]} Rc7 {[%emt 0:00:50]} 40. Rc1 {[%emt 0:01:10]} Qe7 {[%emt 0:00:42]} 41. Rc5 {[%emt 0:30:59]} Qe6 {[%emt 0:31:21]} 42. Rec3 {[%emt 0:01:32]} Rcc8 {[%emt 0:00:51]} 43. Qg5 {[%emt 0:00:45]} Rcf8 {[%emt 0:02:39]} 44. Rg3 {[%emt 0:01:23]} h4 {[%emt 0:00:00]} 45. Rg4 {[%emt 0:00:00]} Rh6 {[%emt 0:00:00]} 46. Rxh4 {[%emt 0:00:00]} Rxh4 {[%emt 0:00:00]} 47. Qxh4 {[%emt 0:00:00]} Rh8 {[%emt 0:00:00]} 48. Qg4 {[%emt 0:00:00]} Qxg4 {[%emt 0:00:00]} 49. Nxg4 {[%emt 0:00:00]} Rh5 {[%emt 0:00:00]} 50. Ne3 {[%emt 0:00:00]} Rh4 {[%emt 0:00:00]} 51. Nxd5 {[%emt 0:00:00]} Rxd4 {[%emt 0:00:00]} 52. Ne7 {[%emt 0:00:00]} Rc4 {[%emt 0:00:00]} 53. Rxc4 {[%emt 0:00:00]} bxc4 {[%emt 0:00:00]} 54. Kf2 {[%emt 0:00:00]} Kf8 {[%emt 0:00:00]} 55. Nxc6 {[%emt 0:00:00]} Nxc6 {[%emt 0:00:00]} 56. a6 {[%emt 0:00:00]} Na7 {[%emt 0:00:00]} 57. Ke3 {[%emt 0:00:00]} Nb5 {[%emt 0:00:00]} 58. h4 {[%emt 0:00:00]} Ke7 {[%emt 0:00:00]} 59. g4 {[%emt 0:00:00]} Ke6 {[%emt 0:00:00]} 60. Ke4 {[%emt 0:00:00]} c3 {[%emt 0:00:00]} 61. Kd3 {[%emt 0:00:29]} Kxe5 {[%emt 0:00:02]} 62. h5 {[%emt 0:01:01]} gxh5 {[%emt 0:04:11]} 63. gxh5 {[%emt 0:00:10]} Kf5 {[%emt 0:01:10]} 64. a7 {[%emt 0:01:51]} Nxa7 {[%emt 0:00:01]} 65. Kxc3 {[%emt 0:00:07]} Kg5 {[%emt 0:00:19]} 66. Kd4 {[%emt 0:00:33]} Nc6+ {[%emt 0:00:20]} 67. Kc5 {[%emt 0:00:31]} Nxb4 {[%emt 0:00:04]} 68. Kxb4 {[%emt 0:00:06]} Kxh5 {[%emt 0:00:16]} 69. Kc3 {[%emt 0:00:29]} Kg4 {[%emt 0:00:02]} 70. Kd2 {[%emt 0:00:30]} Kf3 {[%emt 0:00:08]} 71. Ke1 {[%emt 0:00:13]} f5 {[%emt 0:00:45]} 72. Kf1 {[%emt 0:00:11]} f4 {[%emt 0:00:35]} 73. Kg1 {[%emt 0:00:12]} Ke2 {[%emt 0:00:03]} 0-1